Cogmind - Beta 13 @@@ ROGUE MODE // 2024.02.27 @ 05:47:44 Player: ktur Result: Self-destructed Performance ------------- Evolutions (2) 1000 Regions Visited (3) 600 Robots Destroyed (30) 150 Value Destroyed (653) 653 Prototype IDs (10) 200 Alien Tech Used (0) 0 Bonus (-232) -232 TOTAL SCORE: 2371 Bonus ------- Friendly Fire -232 Cogmind --------- Core Integrity 514/550 Matter 300/300 Energy 250/250 System Corruption 0% Temperature Warm (173) Movement Treading (160) Location -8/Materials Parts ------- > --- POWER (1) -------- Ion Engine > --- PROPULSION (3) --- Light Treads Light Treads Light Treads > --- UTILITY (5) ------ Large Storage Unit > --- WEAPON (2) ------- Subdweller Beam Cannon Ripper > --- INVENTORY (15) --- Light Ion Engine Light Nuclear Core Carbon-fiber Leg Arachnoskeleton Wheel Disposable Heat Sink Small Storage Unit Light Armor Plating Assault Rifle Battle Cannon Mining Laser Piercing Trap Piercing Trap Peak State ------------ > --- POWER ------------ Ion Engine > --- PROPULSION ------- Light Treads Light Treads > --- UTILITY ---------- Large Storage Unit Makeshift Terrain Scanner > --- WEAPON ----------- Subdweller Beam Cannon Ripper > --- INVENTORY -------- Light Ion Engine Light Nuclear Core Light Treads Arachnoskeleton Wheel Disposable Heat Sink Small Storage Unit Light Armor Plating Assault Rifle Battle Cannon Mining Laser Piercing Trap Piercing Trap [Rating: 20] Favorites ----------- Power Light Ion Engine Engine Light Ion Engine Propulsion Light Treads Treads Light Treads Utility Large Storage Unit Device Disposable Heat Sink Storage Large Storage Unit Protection Light Armor Plating Weapon Assault Rifle Energy Gun Particle Gun Energy Cannon Subdweller Beam Cannon Ballistic Gun Assault Rifle Slashing Weapon Ripper Build | -11 -10 -10 -8 ------- Run | Yrd Mat Sub Mat Slots Evolved 4 | . . . 4 Power . | . . . . Propulsion 1 | . . . 1 Utility 3 | . . . 3 Weapon . | . . . . Parts Attached 22 | 7 6 8 1 Power 2 | 1 . 1 . Engine 2 | 1 . 1 . Core . | . . . . Reactor . | . . . . Propulsion 5 | 2 1 1 1 Treads 5 | 2 1 1 1 Leg . | . . . . Wheel . | . . . . Hover . | . . . . Flight . | . . . . Utility 8 | 2 4 2 . Device 4 | 1 1 2 . Storage 2 | 1 1 . . Processor . | . . . . Hackware . | . . . . Protection 2 | . 2 . . Artifact . | . . . . Weapon 7 | 2 1 4 . Energy Gun 1 | . 1 . . Energy Cannon 3 | . . 3 . Ballistic Gun 2 | 2 . . . Ballistic Cannon . | . . . . Launcher . | . . . . Special Weapon . | . . . . Impact Weapon . | . . . . Slashing Weapon 1 | . . 1 . Piercing Weapon . | . . . . Special Melee Weapon . | . . . . Unidentified Prototypes . | . . . . Parts Lost 3 | . 1 2 . Power . | . . . . Propulsion 1 | . . 1 . Utility 2 | . 1 1 . Weapon . | . . . . Highest Loss Streak 1 | . 1 1 . To Critical Strikes . | . . . . Average Slot Usage (%) 97 | . 99 100 63 Engine 13 | . 14 14 9 Treads 27 | . 27 28 27 Device 7 | . 3 10 . Storage 13 | . 14 14 9 Protection 6 | . 10 3 . Energy Gun 6 | . 12 3 . Energy Cannon 7 | . . 11 9 Ballistic Gun 7 | . 15 3 . Slashing Weapon 5 | . . 8 9 Naked Turns . | . . . . Heaviest Build 42 | 13 31 42 36 Greatest Support 60 | 40 40 40 60 Greatest Overweight (x) 1 | . . 1 . Average Overweight (x) . | . . . . Largest Inventory Capacity 15 | 8 15 15 15 Average Capacity 14 | 7 13 15 15 Most Carried 15 | 4 13 15 15 Average Carried 12 | 2 10 14 14 Final Capacity 15 | 8 15 15 15 Final Carried 15 | 4 13 15 15 Class Distribution -------------------- 100% | Mutant Dominant Class ---------------- Mutant | -10/Materials Mutant | -10/Subcaves Mutant | -8/Materials Resources | -11 -10 -10 -8 ----------- Run | Yrd Mat Sub Mat Matter Collected 686 | 223 303 150 10 Remotely . | . . . . Salvage Created 998 | 180 326 269 223 Parts 57 | 12 22 10 13 Haulers Intercepted 1 | . 1 . . Recyclers Shooed . | . . . . Parts Field Recycled . | . . . . Retrieved Matter . | . . . . Parts Self-Destructed 11 | . . 11 . Prevented . | . . . . Kills | -11 -10 -10 -8 ------- Run | Yrd Mat Sub Mat Combat Hostiles Destroyed 18 | . 9 4 5 Melee 2 | . . . 2 Guns 12 | . 9 3 . Cannons 4 | . . 1 3 Classes Destroyed 13 | 3 4 3 3 Worker 1 | 1 . . . Builder 1 | . . . 1 Tunneler 4 | 4 . . . Hauler 1 | . 1 . . Recycler 1 | 1 . . . Operator 1 | . . . 1 Watcher 1 | . 1 . . Swarmer 5 | . 3 . 2 Grunt 8 | . 6 . 2 Sentry 1 | . . . 1 Cobbler 1 | . . 1 . Subdweller 4 | . . 4 . Zionite 2 | . . 2 . Best Kill Streak 4 | 3 4 2 4 Combat Bots Only 4 | . 4 2 3 Max Kills in Single Turn 2 | 1 2 1 1 Gunslinging 1 | . 1 . . Exploded . | . . . . Melee 1 | . . . 1 Uniques/NPCs Destroyed . | . . . . Combat | -11 -10 -10 -8 -------- Run | Yrd Mat Sub Mat Hostile Shots Fired 101 | . 46 19 36 Missed 31 | . 14 3 14 Damage Taken 961 | . 356 368 237 Core 147 | . 43 68 36 Absorbed by Shields . | . . . . Regen/Repaired (Parts) 106 | . 106 . . Core Remaining (%) 77 | 100 . 55 . Volleys Fired 75 | 11 33 20 11 Largest 2 | 2 2 2 1 Hottest 160 | 40 85 160 80 Shots Fired 136 | 22 66 37 11 Gun 111 | 22 66 23 . Cannon 25 | . . 14 11 Launcher . | . . . . Special . | . . . . Kinetic 94 | 22 54 18 . Thermal 42 | . 12 19 11 Explosive . | . . . . Electromagnetic . | . . . . Robot Hit Streak 19 | 7 8 19 3 Robot Miss Streak 4 | 2 4 1 2 Penetration Max . | . . . . Secondary Targets 3 | . 3 . . Max Gunslinging Chain 1 | . 1 . . Shots Hit Robots 105 | 16 43 31 15 Core Hits 46 | 7 20 12 7 Critical Kills . | . . . . Critical Parts Destroyed . | . . . . Critical Strikes 2 | . . . 2 Sever 2 | . . . 2 Melee Attacks 36 | . . 26 10 Impact . | . . . . Slashing 36 | . . 26 10 Piercing . | . . . . Sneak Attacks 5 | . . 4 1 Combat Hostiles . | . . . . Follow-up Attacks . | . . . . Damage Inflicted 2087 | 198 599 745 545 Guns 1013 | 198 582 233 . Cannons 429 | . . 250 179 Explosions . | . . . . Melee 628 | . . 262 366 Ramming 17 | . 17 . . Kinetic 841 | 198 471 172 . Thermal 601 | . 111 311 179 Explosive . | . . . . Electromagnetic . | . . . . Impact . | . . . . Slashing 628 | . . 262 366 Piercing . | . . . . Highest Corruption . | . . . . Average Corruption . | . . . . Corruption Purged . | . . . . Corruption Blocked . | . . . . Overload Shots . | . . . . Overflow Damage 44 | . . . 44 Projectiles . | . . . . Explosions . | . . . . Melee 44 | . . . 44 Knockbacks . | . . . . Impact . | . . . . Kinetic . | . . . . Secondary . | . . . . Self-Inflicted Damage . | . . . . Shots . | . . . . Rammed 2 | . 2 . . Targets Rammed 3 | . 3 . . Kicked . | . . . . Crushed 1 | . 1 . . Highest Temperature 270 | . 165 39 270 Average Temperature 70 | . 60 13 113 Received Heat Transfer 378 | . 171 81 126 Effects 2 | . . . 2 Interference 2 | . . . 2 Siege Activations . | . . . . Robots Corrupted . | . . . . Combat Hostiles . | . . . . Parts Fried . | . . . . Impact Corruptions . | . . . . Robots Melted . | . . . . Combat Hostiles . | . . . . Parts Melted 1 | . . 1 . Heat Transferred 962 | . 259 481 222 Parts Sabotaged . | . . . . Parts Stolen . | . . . . Parts Stripped . | . . . . Power Chain Reactions . | . . . . Alert | -11 -10 -10 -8 ------- Run | Yrd Mat Sub Mat Peak Influence 200 | 30 200 . 191 Initial 19 | . 19 . . Average 56 | 10 59 . 70 Maximum Alert Level 1 | . 1 . . Low Security (%) 95 | 100 94 . 100 Level 1 4 | . 5 . . Level 2 . | . . . . Level 3 . | . . . . Level 4 . | . . . . Level 5 . | . . . . High Security . | . . . . Max Security . | . . . . Squads Dispatched 1 | . . . 1 Investigation . | . . . . Extermination . | . . . . Reinforcement 1 | . . . 1 Assault . | . . . . Garrison . | . . . . Intercept . | . . . . Searches Triggered . | . . . . Construction Impeded . | . . . . Haulers Reinforced . | . . . . Active Scanning Responses . | . . . . Cargo Convoy Interrupts . | . . . . Stealth | -11 -10 -10 -8 --------- Run | Yrd Mat Sub Mat Distress Signals 1 | . 1 . . Communications Jammed . | . . . . Distress Signals . | . . . . Times Spotted 28 | . 12 7 9 Peak Tracking Total 4 | . 4 3 4 Tactical Retreats 1 | . . . 1 Traps | -11 -10 -10 -8 ------- Run | Yrd Mat Sub Mat Traps Triggered 1 | . 1 . . Indirectly . | . . . . Trap Hack Attempts . | . . . . Triggered . | . . . . Disarmed . | . . . . Reprogrammed 6 | . 6 . . Reused 1 | . . 1 . Traps Extracted . | . . . . Installed 1 | . . 1 . Triggered . | . . . . Most Traps Carried 2 | . . 2 2 Machines | -11 -10 -10 -8 ---------- Run | Yrd Mat Sub Mat Machines Disabled 1 | . . 1 . Max in Single Turn 1 | . . 1 . Machines Repaired . | . . . . Machines Dismantled . | . . . . Machines Sabotaged . | . . . . Overloaded Fab Kills . | . . . . Hacking | -11 -10 -10 -8 --------- Run | Yrd Mat Sub Mat Machines Accessed 8 | . 5 2 1 Terminals 5 | . 4 . 1 Fabricators . | . . . . Repair Stations 1 | . 1 . . Recycling Units . | . . . . Scanalyzers . | . . . . Garrison Access . | . . . . Total Hacks 34 | . 20 10 4 Successful 21 | . 9 10 2 Failed 13 | . 11 . 2 Catastrophic . | . . . . Database Lockouts . | . . . . Manual 19 | . 16 . 3 Terminals 21 | . 17 . 4 Fabricators . | . . . . Repair Stations 3 | . 3 . . Recycling Units . | . . . . Scanalyzers . | . . . . Garrison Access . | . . . . Terminal Hacks 16 | . 5 10 1 Record 9 | . . 9 . Robot Analysis 2 | . 2 . . Locate Traps 1 | . 1 . . Reprogram Traps 1 | . 1 . . Zone Layout 2 | . 1 . 1 Derelict Proto ID Bank 1 | . . 1 . Fabricator Hacks . | . . . . Repair Station Hacks 2 | . 2 . . Scan Component 1 | . 1 . . Repair 1 | . 1 . . Recycling Unit Hacks . | . . . . Scanalyzer . | . . . . Garrison Access Hacks . | . . . . Unauthorized Hacks 3 | . 2 . 1 Terminals 3 | . 2 . 1 Assimilate 1 | . 1 . . Operators 2 | . 1 . 1 Fabricators . | . . . . Repair Stations . | . . . . Recycling Units . | . . . . Scanalyzers . | . . . . Garrison Access . | . . . . Data Cores Recovered 1 | . . . 1 Used . | . . . . Hacking Detections 5 | . 4 . 1 Full Trace Events . | . . . . Feedback Events . | . . . . Feedback Blocked . | . . . . Robot Schematics Acquired . | . . . . Robots Built . | . . . . Authchips . | . . . . Time . | . . . . Total Robot Build Rating . | . . . . Part Schematics Acquired . | . . . . Parts Built . | . . . . Authchips . | . . . . Time . | . . . . Total Part Build Rating . | . . . . Parts Repaired 1 | . 1 . . Time 26 | . 26 . . Parts Recycled . | . . . . Recycled Matter . | . . . . Retrieved Matter . | . . . . Retrieved Components . | . . . . Parts Scanalyzed . | . . . . Part Schematics Acquired . | . . . . Parts Damaged . | . . . . Bothacking | -11 -10 -10 -8 ------------ Run | Yrd Mat Sub Mat Used RIF Installer . | . . . . Robots Hacked . | . . . . Non-combat . | . . . . Combat . | . . . . Robot Hacks Applied . | . . . . Relay Couplers Released . | . . . . Fabnet Peak Effective % . | . . . . Robots Rewired . | . . . . Allies Hacked . | . . . . Hacks Repelled . | . . . . Allies | -11 -10 -10 -8 -------- Run | Yrd Mat Sub Mat Total Allies . | . . . . Largest Group . | . . . . Highest-Rated Group . | . . . . Highest-Rated Ally . | . . . . Total Orders . | . . . . Ally Attacks . | . . . . Total Damage . | . . . . Kills . | . . . . Allies Corrupted . | . . . . Allies Melted . | . . . . Intel | -11 -10 -10 -8 ------- Run | Yrd Mat Sub Mat Robot Analysis Total 2 | . 2 . . Derelict Logs Recovered . | . . . . Drone Launches . | . . . . Drone Recoveries . | . . . . Exploration | -11 -10 -10 -8 ------------- Run | Yrd Mat Sub Mat Turns Passed 3423 | 139 1253 1868 163 Spaces Moved 1368 | 60 452 796 60 Core 3 | 3 . . . Treads 1365 | 57 452 796 60 Legs . | . . . . Wheels . | . . . . Hover . | . . . . Flight . | . . . . Fastest Speed 50 | 50 160 160 160 Average Speed 160 | 154 160 160 160 Slowest Speed 240 | 160 160 240 160 Overloaded Moves . | . . . . Propulsion Burnouts . | . . . . Robots Hopped . | . . . . Cave-ins Triggered . | . . . . Exploration Rate (%) 37 | 6 90 43 10 Regions Visited 3 Branch Regions 1 Pre-discovered Areas 1 | . . 1 . Known Exits Taken . | . . . . Unknown Exits Taken 3 | 1 1 1 . Scrap Searched 8 | . . 8 . Spaces Dug 17 | . . 17 . Terrain Destroyed 22 | . . 17 5 Melee 17 | . . 17 . Projectile 5 | . . . 5 AOE . | . . . . Terrain Rammed . | . . . . Walls Destroyed . | . . . . Machines Disabled . | . . . . Actions | -11 -10 -10 -8 --------- Run | Yrd Mat Sub Mat Total 2404 | 81 911 1311 101 Wait 866 | . 410 438 18 Move 1365 | 59 451 795 60 Hop . | . . . . Pick Up 24 | 4 8 11 1 Fast Attach 11 | 7 3 1 . Attach 4 | . . 3 1 Detach 1 | . . 1 . Swap 7 | . 3 4 . Drop 11 | . . 11 . Fire 75 | 11 33 20 11 Melee 36 | . . 26 10 Ram . | . . . . Kick . | . . . . Crush 3 | . 3 . . Escape Stasis . | . . . . Rewire . | . . . . Trap 1 | . . 1 . Miscellaneous . | . . . . Route ------- -11/Scrapyard -10/Materials (discovered 4 exits: [*Mat x2] / [*Min] / *Sub) -10/Subcaves (discovered 2 exits: *Mat x2) -8/Materials History --------- Turn | Location | Event 4 | -11/Scrapyard | Discovered new exit (range 15) 140 | -11/Scrapyard | Entered Materials 315 | -10/Materials | Build established: Mutant 352 | -10/Materials | Discovered new exit (range 6) 429 | -10/Materials | Discovered new exit (range 16) 553 | -10/Materials | Discovered new exit (range 9) 918 | -10/Materials | Repaired Lgt. Treads 1375 | -10/Materials | Discovered new exit (range 3) 1393 | -10/Materials | Entered Subcaves 1493 | -10/Subcaves | Visited Clippyterm 1498 | -10/Subcaves | Learned Factory garrison access intel 1859 | -10/Subcaves | Discovered new exit (range 10) 1930 | -10/Subcaves | Shifting Twisted Machinery released Sub. Beam Cannon 1990 | -10/Subcaves | Shifting Twisted Machinery released Sub. Beam Cannon 2171 | -10/Subcaves | Visited 4L-MR0's lab 2228 | -10/Subcaves | Found Arachnoskeleton 2684 | -10/Subcaves | Learned location of Zion (-6) 2684 | -10/Subcaves | Met a Zionite searching for "candidates" 3248 | -10/Subcaves | Discovered new exit (range 7) 3261 | -10/Subcaves | Entered Materials 3261 | -8/Materials | Evolved 4 slots: Propulsion x1, Utility x3 3424 | -8/Materials | Self-destructed Last Messages --------------- 03330_ G-50 Soldier Carbon-fiber Leg severed. 03338_ Y-45 Defender destroyed. 03340_ Acquired 10 matter. 03360_ O-16 Technician: "IFF HANDSHAKE FAILED. SECURING TERMINAL." 03360_ O-16 Technician destroyed. 03363_ ALERT: Hostiles spotted, dispatching reinforcements to Terminal M005. 03367_ Acquired data core, extracted dynamic key. 03380_ K-01 Serf collects debris. 03382_ T-07 Excavator is excavating. 03384_ K-01 Serf collects debris. 03386_ T-07 Excavator is excavating. 03404_ S-10 Pest destroyed. 03414_ G-47 Trooper destroyed. 03419_ Overheating: System interference. 03419_ Sub. Beam Cannon temporarily disabled. 03422_ Sneak attack on U-05 Engineer. 03422_ Destroyed Wheel. 03422_ Destroyed Welding Torch. 03422_ U-05 Engineer destroyed. Map ----- +----------------------------------------------------+ | | | | | | | | | | | | | | | | | | | | | | | ???????????????###########???????????????????? | | ???????????????# !!= [#???????????????????? | | ???????????????# !== #???????????????????? | | ???????????????# !== #???????????????????? | | ???????????????# #???????????????????? | | ???????????????# #???????????????????? | | ???????????????# #??????????????????## | | ???????????????# #??????????????????# | | ???????????????# #??????????????????# | | ???????????????#####+#####??????????????????# | | ??????????######### #####?????????????????# | | ??????????# # # #?????????????????# | | ??????????# "T" + #?????????????????# | | ??????????# # # #???????########### | | ??????????######### @#####???????# # | | ?????????????????# =%!#??????????#!T # | | ?????????????????# !%############!= # | | ?????????????????# = = / %*+%""" """ / | | ?????????????????# ##% *##[""" """ # | | ?????????????????# ## ###[""" """ # | | ?????????????????#;;s#;;# #?# """ """ # | | ?????????????????### #### #?# # | | ???????????????????# #??# #?########### | | ???????????????????o%####+##### #########???# | | ???????????????????[%# ## # #???# | | ??????????????????? # ## + #???# | | ??????????????????? + ## # #???# | | ?????????????????? * #######+## ############# | | ?????????????????? #?????# + # | | ??????????????????! #?????# # # | | ?????????????????? ####### # # | | ??????????????????? ??????????? ???????????? | | ??????????????????????????????? #????????????? | | ??????????????????????????????? ?????????????? | | ?????????????????????????????????????????????? | | ?????????????????????????????????????????????? | | ?????????????????????????????????????????????? | | ?????????????????????????????????????????????? | | ?????????????????????????????????????????????? | +----------------------------------------------------+ Best States ------------- Heat Dissipation 39 Coolant Potential 50 Energy Generation 10 Energy Capacity 250 Matter Stores 300 Matter Capacity 300 Sight Range 16 Terrain Scan Range 18 Terrain Scan Density 10 Armor Coverage 150 Evasion (%) 40 Recoil Reduction 3 Item Schematics ----------------- None Robot Schematics ------------------ None Fabricated ------------ Nothing Alien Tech Used ----------------- None Achievements -------------- None Challenges ------------ None Game ------ Seed TitaniumBackupNanosword Manual? 0 Play Time 00:15:12 Cumulative 753.4 hours Start 2024.02.27 @ 05:33:05 End 2024.02.27 @ 05:47:44 Sessions 1 Manual Loads 0 Difficulty Rogue Special Mode None Game No. 686 Rogue 686 Adventurer 0 Explorer 0 Win Type - Total 38 Types 14/3/11/2/0/0/5/2/1 Lore% 92 Gallery% 94 Achievement% 84 Wizard Run 0 Options --------- Layout 0 ASCII 0 Keyboard 0 Movement Numpad Keybinds 0 Fullscreen 1 Font 18/Smallcaps Map View 76x50 Zoom Use 0% Tactical HUD 1 Map Filters NONE Filters NONE Steam 1 RUN: 9e2ab1d7-b250-4f1b-976c-f349824e641a